[Event "Titled Tuesday Blitz March 22 Early 2022"]
[White "Rostovtsev, Dmitry"]
[Black "Kotepalli, Sai Nirupama"]
[WhiteFideId "34278320"]
[BlackFideId "5039444"]
[WhiteElo "2359"]
[BlackElo "2395"]
[Result "1/2-1/2"]
[Round "09"]
[TimeControl "180+1"]
[Date "2022.03.22"]
[WhiteClock "0:01:53"]
[BlackClock "0:01:30"]

1. d4 {[%clk 0:03:00]}  g6 {[%clk 0:02:58]} 2. Bf4 {[%clk 0:02:59]}  Bg7 {[%clk 0:02:58]} 3. e3 {[%clk 0:02:57]}  e6 {[%clk 0:02:56]} 4. Nf3 {[%clk 0:02:55]}  Ne7 {[%clk 0:02:55]} 5. c4 {[%clk 0:02:55]}  d5 {[%clk 0:02:54]} 6. Nc3 {[%clk 0:02:55]}  O-O {[%clk 0:02:52]} 7. Be2 {[%clk 0:02:55]}  c5 {[%clk 0:02:49]} 8. dxc5 {[%clk 0:02:49]}  Qa5 {[%clk 0:02:47]} 9. O-O {[%clk 0:02:43]}  Qxc5 {[%clk 0:02:42]} 10. cxd5 {[%clk 0:02:42]}  Nxd5 {[%clk 0:02:37]} 11. Nxd5 {[%clk 0:02:39]}  Qxd5 {[%clk 0:02:34]} 12. Qxd5 {[%clk 0:02:38]}  exd5 {[%clk 0:02:35]} 13. Bxb8 {[%clk 0:02:35]}  Rxb8 {[%clk 0:02:34]} 14. Rab1 {[%clk 0:02:34]}  Bf5 {[%clk 0:02:33]} 15. Rbd1 {[%clk 0:02:32]}  Bxb2 {[%clk 0:02:27]} 16. Rxd5 {[%clk 0:02:31]}  Rfd8 {[%clk 0:02:14]} 17. Rfd1 {[%clk 0:02:28]}  Rxd5 {[%clk 0:02:12]} 18. Rxd5 {[%clk 0:02:28]}  Be6 {[%clk 0:02:12]} 19. Rd2 {[%clk 0:02:28]}  Bf6 {[%clk 0:02:09]} 20. Nd4 {[%clk 0:02:19]}  Rd8 {[%clk 0:02:06]} 21. Bf3 {[%clk 0:02:13]}  b6 {[%clk 0:01:58]} 22. Kf1 {[%clk 0:02:11]}  Bc4+ {[%clk 0:01:46]} 23. Be2 {[%clk 0:02:08]}  Bd5 {[%clk 0:01:34]} 24. Bf3 {[%clk 0:01:58]}  Bc4+ {[%clk 0:01:30]} 25. Be2 {[%clk 0:01:57]}  Bd5 {[%clk 0:01:30]} 26. Bf3 {[%clk 0:01:53]}  Bc4+ {[%clk 0:01:30]} 1/2-1/2


[Site "https://www.chess.com"]

[Event "Titled Tuesday Blitz March 22 Early 2022"]
[White "Ruge, Edison"]
[Black "Przybylski, Wojciech"]
[WhiteFideId "4401000"]
[BlackFideId "1117599"]
[WhiteElo "2175"]
[BlackElo "2133"]
[Result "0-1"]
[Round "09"]
[TimeControl "180+1"]
[Date "2022.03.22"]
[WhiteClock "0:00:02"]
[BlackClock "0:00:19"]

1. e4 {[%clk 0:03:00]}  e5 {[%clk 0:02:58]} 2. Nf3 {[%clk 0:03:00]}  Nc6 {[%clk 0:02:58]} 3. Bb5 {[%clk 0:03:01]}  Nf6 {[%clk 0:02:57]} 4. Qe2 {[%clk 0:02:59]}  Bc5 {[%clk 0:02:54]} 5. c3 {[%clk 0:02:59]}  O-O {[%clk 0:02:52]} 6. Bxc6 {[%clk 0:02:59]}  dxc6 {[%clk 0:02:51]} 7. h3 {[%clk 0:02:58]}  Re8 {[%clk 0:02:47]} 8. d3 {[%clk 0:02:58]}  Nd7 {[%clk 0:02:46]} 9. Be3 {[%clk 0:02:56]}  Qe7 {[%clk 0:02:44]} 10. O-O {[%clk 0:02:56]}  Nf8 {[%clk 0:02:42]} 11. b4 {[%clk 0:02:53]}  Bd6 {[%clk 0:02:38]} 12. a3 {[%clk 0:02:51]}  c5 {[%clk 0:02:35]} 13. Nbd2 {[%clk 0:02:50]}  Ng6 {[%clk 0:02:31]} 14. Nb3 {[%clk 0:02:43]}  cxb4 {[%clk 0:02:27]} 15. axb4 {[%clk 0:02:43]}  b6 {[%clk 0:02:27]} 16. Nbd2 {[%clk 0:02:31]}  Bb7 {[%clk 0:02:23]} 17. Ra2 {[%clk 0:02:26]}  a6 {[%clk 0:02:16]} 18. Nc4 {[%clk 0:02:22]}  Rad8 {[%clk 0:02:16]} 19. Bg5 {[%clk 0:02:12]}  f6 {[%clk 0:02:14]} 20. Be3 {[%clk 0:02:12]}  Nf4 {[%clk 0:02:09]} 21. Bxf4 {[%clk 0:02:09]}  exf4 {[%clk 0:02:10]} 22. Re1 {[%clk 0:02:05]}  Kh8 {[%clk 0:01:54]} 23. Nh4 {[%clk 0:01:53]}  Qe6 {[%clk 0:01:52]} 24. Nf5 {[%clk 0:01:48]}  Bf8 {[%clk 0:01:51]} 25. Nd4 {[%clk 0:01:45]}  Qf7 {[%clk 0:01:48]} 26. Rd2 {[%clk 0:01:29]}  Bxb4 {[%clk 0:01:44]} 27. cxb4 {[%clk 0:01:27]}  Rxd4 {[%clk 0:01:43]} 28. Qf3 {[%clk 0:01:07]}  g5 {[%clk 0:01:32]} 29. Qd1 {[%clk 0:00:55]}  Qd7 {[%clk 0:01:25]} 30. e5 {[%clk 0:00:40]}  Qd5 {[%clk 0:01:21]} 31. f3 {[%clk 0:00:34]}  fxe5 {[%clk 0:01:20]} 32. Qa1 {[%clk 0:00:27]}  b5 {[%clk 0:01:16]} 33. Na5 {[%clk 0:00:18]}  Bc8 {[%clk 0:01:15]} 34. Rde2 {[%clk 0:00:18]}  Bf5 {[%clk 0:01:12]} 35. Qc3 {[%clk 0:00:13]}  Bxd3 {[%clk 0:01:09]} 36. Rd2 {[%clk 0:00:06]}  Bg6 {[%clk 0:01:07]} 37. Rde2 {[%clk 0:00:03]}  Kg8 {[%clk 0:00:19]} 38. Rf2 {[%clk 0:00:03]}  Rd1 {[%clk 0:00:19]} 39. Re2 {[%clk 0:00:02]}  Rxe1+ {[%clk 0:00:18]} 40. Rxe1 {[%clk 0:00:02]}  Qd4+ {[%clk 0:00:18]} 41. Qxd4 {[%clk 0:00:02]}  exd4 {[%clk 0:00:19]} 42. Rc1 {[%clk 0:00:02]}  d3 {[%clk 0:00:19]} 0-1


[Site "https://www.chess.com"]

[Event "Titled Tuesday Blitz March 22 Early 2022"]
[White "Salinas Herrera, Pablo"]
[Black "Kozak, Antoni"]
[WhiteFideId "3407128"]
[BlackFideId "21832030"]
[WhiteElo "2541"]
[BlackElo "2236"]
[Result "1-0"]
[Round "09"]
[TimeControl "180+1"]
[Date "2022.03.22"]
[WhiteClock "0:00:31"]
[BlackClock "0:00:07"]

1. d4 {[%clk 0:02:19]}  d5 {[%clk 0:02:59]} 2. Nf3 {[%clk 0:02:17]}  Nf6 {[%clk 0:02:58]} 3. Bf4 {[%clk 0:02:17]}  c5 {[%clk 0:02:56]} 4. e3 {[%clk 0:02:17]}  cxd4 {[%clk 0:02:52]} 5. exd4 {[%clk 0:02:17]}  Nc6 {[%clk 0:02:53]} 6. c3 {[%clk 0:02:17]}  Bf5 {[%clk 0:02:51]} 7. Qb3 {[%clk 0:02:17]}  Qc8 {[%clk 0:02:48]} 8. Nbd2 {[%clk 0:02:17]}  e6 {[%clk 0:02:48]} 9. Be2 {[%clk 0:02:17]}  Be7 {[%clk 0:02:49]} 10. O-O {[%clk 0:02:18]}  O-O {[%clk 0:02:49]} 11. Rfe1 {[%clk 0:02:18]}  Bd8 {[%clk 0:02:48]} 12. Ne5 {[%clk 0:02:18]}  Bc7 {[%clk 0:02:47]} 13. Bg3 {[%clk 0:02:14]}  Nxe5 {[%clk 0:02:42]} 14. dxe5 {[%clk 0:02:14]}  Nd7 {[%clk 0:02:42]} 15. Nf3 {[%clk 0:02:08]}  Nc5 {[%clk 0:02:34]} 16. Qd1 {[%clk 0:02:08]}  Ne4 {[%clk 0:02:33]} 17. Bf4 {[%clk 0:02:02]}  Bb6 {[%clk 0:02:32]} 18. Nd4 {[%clk 0:02:02]}  Bg6 {[%clk 0:02:27]} 19. h4 {[%clk 0:01:45]}  h6 {[%clk 0:02:18]} 20. Rc1 {[%clk 0:01:31]}  Qd8 {[%clk 0:02:11]} 21. g3 {[%clk 0:01:25]}  a6 {[%clk 0:02:02]} 22. Kg2 {[%clk 0:01:25]}  Bc5 {[%clk 0:01:58]} 23. Bd3 {[%clk 0:01:23]}  Ba7 {[%clk 0:01:15]} 24. f3 {[%clk 0:01:21]}  Nc5 {[%clk 0:01:15]} 25. Bxg6 {[%clk 0:01:21]}  fxg6 {[%clk 0:01:16]} 26. b4 {[%clk 0:01:21]}  Rxf4 {[%clk 0:01:15]} 27. bxc5 {[%clk 0:01:12]}  Rf7 {[%clk 0:01:06]} 28. Nxe6 {[%clk 0:01:13]}  Qd7 {[%clk 0:00:58]} 29. Nd4 {[%clk 0:01:10]}  Re7 {[%clk 0:00:56]} 30. Qd3 {[%clk 0:01:08]}  Qe8 {[%clk 0:00:51]} 31. f4 {[%clk 0:01:01]}  Bxc5 {[%clk 0:00:50]} 32. Nb3 {[%clk 0:01:01]}  Qc6 {[%clk 0:00:50]} 33. Rcd1 {[%clk 0:00:56]}  Rd8 {[%clk 0:00:43]} 34. Qf3 {[%clk 0:00:55]}  Ba7 {[%clk 0:00:39]} 35. Re2 {[%clk 0:00:55]}  Rc7 {[%clk 0:00:36]} 36. Rd3 {[%clk 0:00:53]}  Qb6 {[%clk 0:00:25]} 37. Red2 {[%clk 0:00:50]}  Qg1+ {[%clk 0:00:25]} 38. Kh3 {[%clk 0:00:50]}  Kh7 {[%clk 0:00:23]} 39. Rd1 {[%clk 0:00:45]}  Qb6 {[%clk 0:00:21]} 40. Rxd5 {[%clk 0:00:43]}  Qe6+ {[%clk 0:00:20]} 41. f5 {[%clk 0:00:33]}  Rxc3 {[%clk 0:00:08]} 42. fxe6 {[%clk 0:00:31]}  Rxf3 {[%clk 0:00:08]} 43. Rxd8 {[%clk 0:00:31]}  Re3 {[%clk 0:00:07]} 44. e7 {[%clk 0:00:31]} 1-0


[Site "https://www.chess.com"]

[Event "Titled Tuesday Blitz March 22 Early 2022"]
[White "Samaganova, Aleksandra"]
[Black "Sailer, Mike"]
[WhiteFideId "13800221"]
[BlackFideId "2012901"]
[WhiteElo "1859"]
[BlackElo "2109"]
[Result "1-0"]
[Round "09"]
[TimeControl "180+1"]
[Date "2022.03.22"]
[WhiteClock "0:00:02"]
[BlackClock "0:00:01"]

1. c4 {[%clk 0:03:00]}  c6 {[%clk 0:02:58]} 2. Nf3 {[%clk 0:02:59]}  d5 {[%clk 0:02:59]} 3. e3 {[%clk 0:02:58]}  Nf6 {[%clk 0:02:59]} 4. Nc3 {[%clk 0:02:57]}  Bf5 {[%clk 0:02:59]} 5. cxd5 {[%clk 0:02:57]}  cxd5 {[%clk 0:02:59]} 6. Qb3 {[%clk 0:02:58]}  Nbd7 {[%clk 0:02:43]} 7. Nxd5 {[%clk 0:02:43]}  Nxd5 {[%clk 0:02:41]} 8. Qxd5 {[%clk 0:02:42]}  e6 {[%clk 0:02:40]} 9. Qb5 {[%clk 0:02:29]}  Bd6 {[%clk 0:02:29]} 10. Be2 {[%clk 0:02:17]}  O-O {[%clk 0:02:29]} 11. d4 {[%clk 0:02:10]}  a6 {[%clk 0:02:18]} 12. Qa4 {[%clk 0:01:58]}  b5 {[%clk 0:02:17]} 13. Qd1 {[%clk 0:01:55]}  Rc8 {[%clk 0:01:53]} 14. Bd3 {[%clk 0:01:53]}  Bb4+ {[%clk 0:01:36]} 15. Ke2 {[%clk 0:01:41]}  Bg4 {[%clk 0:01:30]} 16. h3 {[%clk 0:01:33]}  Bh5 {[%clk 0:01:30]} 17. g4 {[%clk 0:01:29]}  Bg6 {[%clk 0:01:30]} 18. Bxg6 {[%clk 0:01:20]}  fxg6 {[%clk 0:01:30]} 19. g5 {[%clk 0:01:07]}  e5 {[%clk 0:01:09]} 20. Qb3+ {[%clk 0:01:05]}  Kh8 {[%clk 0:01:05]} 21. Qxb4 {[%clk 0:01:04]}  e4 {[%clk 0:00:44]} 22. Ne1 {[%clk 0:00:46]}  Qxg5 {[%clk 0:00:42]} 23. Rh2 {[%clk 0:00:16]}  Qg1 {[%clk 0:00:26]} 24. Rg2 {[%clk 0:00:16]}  Qh1 {[%clk 0:00:23]} 25. Bd2 {[%clk 0:00:14]}  Nf6 {[%clk 0:00:14]} 26. Bc3 {[%clk 0:00:13]}  Nd5 {[%clk 0:00:11]} 27. Qb3 {[%clk 0:00:13]}  Rcd8 {[%clk 0:00:08]} 28. Rd1 {[%clk 0:00:11]}  Rf3 {[%clk 0:00:06]} 29. Kd2 {[%clk 0:00:11]}  Rxh3 {[%clk 0:00:05]} 30. Kc1 {[%clk 0:00:11]}  Rh2 {[%clk 0:00:03]} 31. Rg5 {[%clk 0:00:10]}  Rxf2 {[%clk 0:00:03]} 32. Rxd5 {[%clk 0:00:09]}  Rdf8 {[%clk 0:00:03]} 33. Qb4 {[%clk 0:00:06]}  Qh2 {[%clk 0:00:02]} 34. Kb1 {[%clk 0:00:04]}  Re8 {[%clk 0:00:02]} 35. Re5 {[%clk 0:00:04]}  Ra8 {[%clk 0:00:01]} 36. Qe7 {[%clk 0:00:03]}  h6 {[%clk 0:00:02]} 37. Qb7 {[%clk 0:00:02]}  Raf8 {[%clk 0:00:01]} 38. Qxe4 {[%clk 0:00:02]} 1-0


[Site "https://www.chess.com"]

[Event "Titled Tuesday Blitz March 22 Early 2022"]
[White "Samunenkov, Ihor"]
[Black "Perez Gormaz, Matias"]
[WhiteFideId "14187086"]
[BlackFideId "3406342"]
[WhiteElo "2409"]
[BlackElo "2327"]
[Result "0-1"]
[Round "09"]
[TimeControl "180+1"]
[Date "2022.03.22"]
[WhiteClock "0:00:02"]
[BlackClock "0:00:04"]

1. d4 {[%clk 0:03:00]}  Nf6 {[%clk 0:03:00]} 2. c4 {[%clk 0:03:00]}  e6 {[%clk 0:03:00]} 3. Nc3 {[%clk 0:03:00]}  Bb4 {[%clk 0:03:01]} 4. e3 {[%clk 0:02:59]}  c5 {[%clk 0:03:01]} 5. Ne2 {[%clk 0:02:58]}  b6 {[%clk 0:03:00]} 6. a3 {[%clk 0:02:47]}  Ba5 {[%clk 0:03:00]} 7. Rb1 {[%clk 0:02:39]}  Na6 {[%clk 0:02:59]} 8. f3 {[%clk 0:02:39]}  O-O {[%clk 0:02:48]} 9. Kf2 {[%clk 0:02:34]}  d5 {[%clk 0:02:20]} 10. cxd5 {[%clk 0:02:29]}  exd5 {[%clk 0:02:19]} 11. g4 {[%clk 0:02:22]}  Re8 {[%clk 0:02:08]} 12. Nf4 {[%clk 0:02:05]}  Bxc3 {[%clk 0:01:59]} 13. bxc3 {[%clk 0:02:03]}  c4 {[%clk 0:01:52]} 14. g5 {[%clk 0:01:56]}  Nd7 {[%clk 0:01:43]} 15. h4 {[%clk 0:01:42]}  Nc7 {[%clk 0:01:41]} 16. Bd2 {[%clk 0:01:24]}  b5 {[%clk 0:01:20]} 17. Rg1 {[%clk 0:01:12]}  Nb6 {[%clk 0:01:15]} 18. h5 {[%clk 0:01:12]}  Qd6 {[%clk 0:01:06]} 19. g6 {[%clk 0:00:49]}  fxg6 {[%clk 0:00:49]} 20. hxg6 {[%clk 0:00:49]}  h6 {[%clk 0:00:49]} 21. Ra1 {[%clk 0:00:24]}  Ne6 {[%clk 0:00:33]} 22. Nh3 {[%clk 0:00:12]}  Rf8 {[%clk 0:00:30]} 23. f4 {[%clk 0:00:11]}  Na4 {[%clk 0:00:23]} 24. Qc1 {[%clk 0:00:06]}  Nc7 {[%clk 0:00:21]} 25. Bg2 {[%clk 0:00:06]}  Ne8 {[%clk 0:00:20]} 26. Rh1 {[%clk 0:00:03]}  Nf6 {[%clk 0:00:20]} 27. Ng1 {[%clk 0:00:03]}  Bf5 {[%clk 0:00:18]} 28. Ne2 {[%clk 0:00:03]}  Bxg6 {[%clk 0:00:18]} 29. Ng3 {[%clk 0:00:03]}  Rae8 {[%clk 0:00:19]} 30. Ra2 {[%clk 0:00:01]}  Ng4+ {[%clk 0:00:17]} 31. Kg1 {[%clk 0:00:01]}  Nf6 {[%clk 0:00:14]} 32. Bf3 {[%clk 0:00:01]}  Ne4 {[%clk 0:00:12]} 33. Kg2 {[%clk 0:00:02]}  Qe7 {[%clk 0:00:09]} 34. Nxe4 {[%clk 0:00:02]}  Bxe4 {[%clk 0:00:10]} 35. Rf1 {[%clk 0:00:02]}  Qh4 {[%clk 0:00:10]} 36. Be1 {[%clk 0:00:02]}  Qg4+ {[%clk 0:00:09]} 37. Bg3 {[%clk 0:00:02]}  h5 {[%clk 0:00:08]} 38. Bxe4 {[%clk 0:00:01]}  Rxe4 {[%clk 0:00:07]} 39. Kf2 {[%clk 0:00:02]}  Rfe8 {[%clk 0:00:05]} 40. Rh1 {[%clk 0:00:02]}  Rxe3 {[%clk 0:00:04]} 41. Qg1 {[%clk 0:00:02]}  Qf3# {[%clk 0:00:04]} 0-1


[Site "https://www.chess.com"]

[Event "Titled Tuesday Blitz March 22 Early 2022"]
[White "Santos Flores, Alberto"]
[Black "Kett, Tim"]
[WhiteFideId "3601234"]
[BlackFideId "1801210"]
[WhiteElo "2235"]
[BlackElo "2098"]
[Result "1-0"]
[Round "09"]
[TimeControl "180+1"]
[Date "2022.03.22"]
[WhiteClock "0:01:21"]
[BlackClock "0:00:40"]

1. e4 {[%clk 0:02:44]}  e5 {[%clk 0:02:58]} 2. Nf3 {[%clk 0:02:41]}  Nc6 {[%clk 0:02:57]} 3. Bc4 {[%clk 0:02:40]}  Nf6 {[%clk 0:02:57]} 4. d3 {[%clk 0:02:39]}  Be7 {[%clk 0:02:57]} 5. O-O {[%clk 0:02:38]}  d6 {[%clk 0:02:58]} 6. Re1 {[%clk 0:02:38]}  O-O {[%clk 0:02:56]} 7. c3 {[%clk 0:02:35]}  Na5 {[%clk 0:02:56]} 8. Bb5 {[%clk 0:02:34]}  a6 {[%clk 0:02:56]} 9. Ba4 {[%clk 0:02:34]}  b5 {[%clk 0:02:56]} 10. Bc2 {[%clk 0:02:34]}  c5 {[%clk 0:02:56]} 11. d4 {[%clk 0:02:33]}  cxd4 {[%clk 0:02:52]} 12. cxd4 {[%clk 0:02:32]}  Nc6 {[%clk 0:02:53]} 13. h3 {[%clk 0:02:31]}  exd4 {[%clk 0:02:52]} 14. Nxd4 {[%clk 0:02:30]}  Nxd4 {[%clk 0:02:52]} 15. Qxd4 {[%clk 0:02:29]}  Be6 {[%clk 0:02:52]} 16. Nc3 {[%clk 0:02:28]}  Rc8 {[%clk 0:02:47]} 17. Bf4 {[%clk 0:02:26]}  d5 {[%clk 0:02:46]} 18. exd5 {[%clk 0:02:24]}  Nxd5 {[%clk 0:02:39]} 19. Nxd5 {[%clk 0:02:24]}  Rxc2 {[%clk 0:02:07]} 20. Nxe7+ {[%clk 0:02:17]}  Qxe7 {[%clk 0:02:05]} 21. Re3 {[%clk 0:02:08]}  Rfc8 {[%clk 0:02:01]} 22. Rg3 {[%clk 0:02:06]}  f6 {[%clk 0:01:54]} 23. Re1 {[%clk 0:02:05]}  Qf7 {[%clk 0:01:50]} 24. Bh6 {[%clk 0:02:00]}  g6 {[%clk 0:01:45]} 25. Rf3 {[%clk 0:01:56]}  Bf5 {[%clk 0:01:02]} 26. Rfe3 {[%clk 0:01:33]}  Qd7 {[%clk 0:00:45]} 27. Qxf6 {[%clk 0:01:30]}  R2c6 {[%clk 0:00:42]} 28. Re8+ {[%clk 0:01:22]}  Rxe8 {[%clk 0:00:40]} 29. Rxe8+ {[%clk 0:01:21]}  Qxe8 {[%clk 0:00:40]} 30. Qg7# {[%clk 0:01:21]} 1-0


[Site "https://www.chess.com"]

[Event "Titled Tuesday Blitz March 22 Early 2022"]
[White "Silvestre, Christian"]
[Black "Cramling Bellon, Anna"]
[WhiteFideId "30956269"]
[BlackFideId "32009232"]
[WhiteElo "2422"]
[BlackElo "1905"]
[Result "1-0"]
[Round "09"]
[TimeControl "180+1"]
[Date "2022.03.22"]
[WhiteClock "0:00:10"]
[BlackClock "0:00:01"]

1. e4 {[%clk 0:02:52]}  c5 {[%clk 0:02:57]} 2. Nc3 {[%clk 0:02:51]}  e6 {[%clk 0:02:56]} 3. d3 {[%clk 0:02:41]}  d5 {[%clk 0:02:55]} 4. g3 {[%clk 0:02:39]}  Nc6 {[%clk 0:02:53]} 5. Bg2 {[%clk 0:02:38]}  Nf6 {[%clk 0:02:49]} 6. Nge2 {[%clk 0:02:35]}  Be7 {[%clk 0:02:48]} 7. O-O {[%clk 0:02:32]}  d4 {[%clk 0:02:47]} 8. Nb1 {[%clk 0:02:31]}  O-O {[%clk 0:02:47]} 9. f4 {[%clk 0:02:31]}  e5 {[%clk 0:02:36]} 10. f5 {[%clk 0:02:26]}  Ng4 {[%clk 0:02:36]} 11. h3 {[%clk 0:02:21]}  Ne3 {[%clk 0:02:34]} 12. Bxe3 {[%clk 0:02:15]}  dxe3 {[%clk 0:02:35]} 13. h4 {[%clk 0:02:05]}  Nd4 {[%clk 0:02:35]} 14. Nbc3 {[%clk 0:02:02]}  b5 {[%clk 0:02:20]} 15. Nd5 {[%clk 0:02:00]}  Bb7 {[%clk 0:02:13]} 16. Nxe3 {[%clk 0:01:57]}  c4 {[%clk 0:02:06]} 17. dxc4 {[%clk 0:01:47]}  bxc4 {[%clk 0:01:46]} 18. c3 {[%clk 0:01:39]}  Nxe2+ {[%clk 0:01:44]} 19. Qxe2 {[%clk 0:01:39]}  Qd3 {[%clk 0:01:37]} 20. Qxd3 {[%clk 0:01:32]}  cxd3 {[%clk 0:01:37]} 21. Rfd1 {[%clk 0:01:31]}  Rfd8 {[%clk 0:01:34]} 22. Rd2 {[%clk 0:01:23]}  Bc5 {[%clk 0:01:33]} 23. Kf2 {[%clk 0:01:22]}  g6 {[%clk 0:01:25]} 24. g4 {[%clk 0:01:20]}  gxf5 {[%clk 0:01:20]} 25. gxf5 {[%clk 0:01:20]}  Be7 {[%clk 0:01:18]} 26. Kg3 {[%clk 0:01:09]}  Kh8 {[%clk 0:01:13]} 27. Rad1 {[%clk 0:01:06]}  Rg8+ {[%clk 0:00:30]} 28. Kh3 {[%clk 0:01:03]}  Ba6 {[%clk 0:00:24]} 29. c4 {[%clk 0:00:47]}  Rg7 {[%clk 0:00:06]} 30. Bf1 {[%clk 0:00:17]}  Rag8 {[%clk 0:00:05]} 31. Rg2 {[%clk 0:00:17]}  Rxg2 {[%clk 0:00:04]} 32. Nxg2 {[%clk 0:00:11]}  Bxc4 {[%clk 0:00:03]} 33. b3 {[%clk 0:00:10]}  Bb5 {[%clk 0:00:02]} 34. Bxd3 {[%clk 0:00:10]}  Bxd3 {[%clk 0:00:01]} 35. Rxd3 {[%clk 0:00:10]}  Bc5 {[%clk 0:00:01]} 36. Ne3 {[%clk 0:00:10]}  Bxe3 {[%clk 0:00:01]} 37. Rxe3 {[%clk 0:00:11]}  Rd8 {[%clk 0:00:01]} 38. Kg4 {[%clk 0:00:10]}  Rd4 {[%clk 0:00:02]} 39. Kg5 {[%clk 0:00:10]}  Kg7 {[%clk 0:00:02]} 40. f6+ {[%clk 0:00:10]}  Kg8 {[%clk 0:00:02]} 41. Kf5 {[%clk 0:00:11]}  Rb4 {[%clk 0:00:01]} 42. Kxe5 {[%clk 0:00:11]}  Rb5+ {[%clk 0:00:02]} 43. Kf4 {[%clk 0:00:11]}  Rh5 {[%clk 0:00:03]} 44. Kg4 {[%clk 0:00:11]}  Re5 {[%clk 0:00:03]} 45. Kf4 {[%clk 0:00:09]}  Re6 {[%clk 0:00:03]} 46. Rg3+ {[%clk 0:00:09]}  Kf8 {[%clk 0:00:03]} 47. e5 {[%clk 0:00:10]}  Rc6 {[%clk 0:00:01]} 48. Rg7 {[%clk 0:00:10]}  h5 {[%clk 0:00:01]} 49. Rh7 {[%clk 0:00:10]}  Kg8 {[%clk 0:00:01]} 50. Rxh5 {[%clk 0:00:10]}  Rc1 {[%clk 0:00:01]} 51. Rg5+ {[%clk 0:00:11]}  Kh8 {[%clk 0:00:01]} 52. Kf5 {[%clk 0:00:12]}  Rf1+ {[%clk 0:00:01]} 53. Ke4 {[%clk 0:00:12]}  Rh1 {[%clk 0:00:01]} 54. Rg4 {[%clk 0:00:10]} 1-0


[Site "https://www.chess.com"]

[Event "Titled Tuesday Blitz March 22 Early 2022"]
[White "Siva Mahadevan"]
[Black "Sadovsky, Artem"]
[WhiteFideId "25043153"]
[BlackFideId "4155840"]
[WhiteElo "2779"]
[BlackElo "2487"]
[Result "1-0"]
[Round "09"]
[TimeControl "180+1"]
[Date "2022.03.22"]
[WhiteClock "0:02:08"]
[BlackClock "0:00:51"]

1. e4 {[%clk 0:02:56]}  g6 {[%clk 0:02:48]} 2. d4 {[%clk 0:02:56]}  Bg7 {[%clk 0:02:49]} 3. Nc3 {[%clk 0:02:57]}  c6 {[%clk 0:02:49]} 4. Bc4 {[%clk 0:02:54]}  d5 {[%clk 0:02:49]} 5. exd5 {[%clk 0:02:53]}  b5 {[%clk 0:02:49]} 6. Bb3 {[%clk 0:02:51]}  b4 {[%clk 0:02:49]} 7. Ne4 {[%clk 0:02:50]}  cxd5 {[%clk 0:02:49]} 8. Nc5 {[%clk 0:02:50]}  Nf6 {[%clk 0:02:45]} 9. Nf3 {[%clk 0:02:47]}  O-O {[%clk 0:02:45]} 10. O-O {[%clk 0:02:47]}  a5 {[%clk 0:02:36]} 11. Re1 {[%clk 0:02:46]}  Na6 {[%clk 0:02:33]} 12. a3 {[%clk 0:02:40]}  Nxc5 {[%clk 0:02:24]} 13. dxc5 {[%clk 0:02:41]}  Bg4 {[%clk 0:02:25]} 14. axb4 {[%clk 0:02:39]}  axb4 {[%clk 0:02:25]} 15. Rxa8 {[%clk 0:02:40]}  Qxa8 {[%clk 0:02:25]} 16. Rxe7 {[%clk 0:02:33]}  Re8 {[%clk 0:02:16]} 17. Rxe8+ {[%clk 0:02:27]}  Qxe8 {[%clk 0:02:17]} 18. Be3 {[%clk 0:02:28]}  Qe4 {[%clk 0:01:54]} 19. c6 {[%clk 0:02:18]}  Qe6 {[%clk 0:01:47]} 20. Nd4 {[%clk 0:02:10]}  Qxc6 {[%clk 0:01:28]} 21. Qxg4 {[%clk 0:02:08]}  Nxg4 {[%clk 0:01:28]} 22. Nxc6 {[%clk 0:02:08]}  Nxe3 {[%clk 0:01:29]} 23. fxe3 {[%clk 0:02:08]}  Bxb2 {[%clk 0:01:30]} 24. Ne7+ {[%clk 0:02:08]}  Kg7 {[%clk 0:01:28]} 25. Nxd5 {[%clk 0:02:09]}  Ba3 {[%clk 0:01:28]} 26. Kf2 {[%clk 0:02:08]}  f5 {[%clk 0:01:23]} 27. Ke2 {[%clk 0:02:08]}  g5 {[%clk 0:01:16]} 28. Kd3 {[%clk 0:02:08]}  h5 {[%clk 0:01:08]} 29. Kc4 {[%clk 0:02:08]}  Bc1 {[%clk 0:00:51]} 1-0


[Site "https://www.chess.com"]

[Event "Titled Tuesday Blitz March 22 Early 2022"]
[White "Smirnov, Pavel"]
[Black "Martinez Alcantara, Jose Eduardo"]
[WhiteFideId "4123425"]
[BlackFideId "3805662"]
[WhiteElo "2545"]
[BlackElo "2690"]
[Result "0-1"]
[Round "09"]
[TimeControl "180+1"]
[Date "2022.03.22"]
[WhiteClock "0:00:22"]
[BlackClock "0:00:54"]

1. d4 {[%clk 0:03:00]}  Nf6 {[%clk 0:02:57]} 2. c4 {[%clk 0:03:00]}  e6 {[%clk 0:02:57]} 3. Nf3 {[%clk 0:02:59]}  Bb4+ {[%clk 0:02:55]} 4. Nbd2 {[%clk 0:02:58]}  b6 {[%clk 0:02:54]} 5. a3 {[%clk 0:02:55]}  Bxd2+ {[%clk 0:02:54]} 6. Qxd2 {[%clk 0:02:55]}  Bb7 {[%clk 0:02:55]} 7. e3 {[%clk 0:02:55]}  d5 {[%clk 0:02:55]} 8. b3 {[%clk 0:02:47]}  O-O {[%clk 0:02:54]} 9. Bb2 {[%clk 0:02:46]}  Nbd7 {[%clk 0:02:53]} 10. Be2 {[%clk 0:02:43]}  dxc4 {[%clk 0:02:51]} 11. bxc4 {[%clk 0:02:43]}  c5 {[%clk 0:02:50]} 12. O-O {[%clk 0:02:43]}  cxd4 {[%clk 0:02:43]} 13. exd4 {[%clk 0:02:41]}  Rc8 {[%clk 0:02:43]} 14. Rac1 {[%clk 0:02:37]}  Qc7 {[%clk 0:02:40]} 15. h3 {[%clk 0:02:24]}  Rfd8 {[%clk 0:02:37]} 16. Rfd1 {[%clk 0:02:21]}  Qb8 {[%clk 0:02:28]} 17. Qe3 {[%clk 0:02:19]}  h6 {[%clk 0:02:27]} 18. Ne5 {[%clk 0:01:55]}  Nxe5 {[%clk 0:02:24]} 19. dxe5 {[%clk 0:01:54]}  Ne4 {[%clk 0:02:23]} 20. Bd4 {[%clk 0:01:50]}  Nc5 {[%clk 0:02:19]} 21. h4 {[%clk 0:01:40]}  Qc7 {[%clk 0:02:12]} 22. h5 {[%clk 0:01:36]}  Qe7 {[%clk 0:02:05]} 23. Ba1 {[%clk 0:01:23]}  Qh4 {[%clk 0:01:37]} 24. Rd6 {[%clk 0:01:11]}  Ne4 {[%clk 0:01:24]} 25. Rd4 {[%clk 0:01:03]}  Rxd4 {[%clk 0:01:22]} 26. Bxd4 {[%clk 0:01:02]}  Nc5 {[%clk 0:01:18]} 27. Rd1 {[%clk 0:00:59]}  Qe7 {[%clk 0:01:14]} 28. f3 {[%clk 0:00:48]}  Rd8 {[%clk 0:01:13]} 29. Rd2 {[%clk 0:00:30]}  Qh4 {[%clk 0:00:57]} 30. Qf2 {[%clk 0:00:23]}  Qxf2+ {[%clk 0:00:53]} 31. Kxf2 {[%clk 0:00:22]}  Nb3 {[%clk 0:00:54]} 0-1


[Site "https://www.chess.com"]